fUST/lending_fUST_20260516
["ID","MTS","AMOUNT","RATE_DAILY","PERIOD"]
[422378334,1778901046000,-996.247149,0.00010959,2]
[422378331,1778901046000,-3270.14742831,0.00010959,2]
[422378323,1778901046000,-166.239497,0.00010959,2]
[422378321,1778901046000,-720.616883,0.00010959,2]
[422378322,1778901046000,-166.239497,0.00010959,2]
[422378332,1778901046000,-996.247149,0.00010959,2]
[422378328,1778901046000,-3270.147438,0.00010959,2]
[422378337,1778901046000,-996.247149,0.00010959,2]
[422378345,1778901046000,-349.746798,0.00010959,2]
[422378347,1778901046000,-773.712798,0.00010959,2]
[422378348,1778901046000,-773.712798,0.00010959,2]
[422378342,1778901046000,-349.746805,0.00010959,2]
[422378350,1778901046000,-773.71279,0.00010959,2]
[422378349,1778901046000,-773.712798,0.00010959,2]
[422378338,1778901046000,-243.260798,0.00010959,2]
[422378330,1778901046000,-3270.147438,0.00010959,2]
[422378329,1778901046000,-3270.147438,0.00010959,2]
[422378336,1778901046000,-996.247149,0.00010959,2]
[422378327,1778901046000,-166.239506,0.00010959,2]
[422378346,1778901046000,-151.0,0.00010959,2]
[422378428,1778901047000,-500.0,0.00011232,2]
[422378429,1778901047000,-500.0,0.00011232,2]
[422378419,1778901047000,-500.0,0.00011232,2]
[422378430,1778901047000,-500.0,0.00011232,2]
[422378404,1778901047000,-500.0,0.00011232,2]
[422378418,1778901047000,-500.0,0.00011232,2]
[422378415,1778901047000,-292.36763306,0.00011232,2]
[422378416,1778901047000,-501.541608,0.00011232,2]
[422378414,1778901047000,-500.0,0.00011232,2]
[422378420,1778901047000,-500.0,0.00011232,2]
[422378417,1778901047000,-500.0,0.00011232,2]
[422378421,1778901047000,-500.0,0.00011232,2]
[422378437,1778901047000,-500.0,0.00011232,2]
[422378423,1778901047000,-500.64573221,0.00011232,2]
[422378426,1778901047000,-500.0,0.00011232,2]
[422378425,1778901047000,-500.0,0.00011232,2]
[422378427,1778901047000,-565.49,0.00011232,2]
[422378422,1778901047000,-500.0,0.00011232,2]
[422378434,1778901047000,-500.0,0.00011232,2]
[422378435,1778901047000,-500.0,0.00011232,2]
[422378431,1778901047000,-501.43335618,0.00011232,2]
[422378433,1778901047000,-501.22080781,0.00011232,2]
[422378441,1778901047000,-500.0,0.00011232,2]
[422378436,1778901047000,-500.0,0.00011232,2]
[422378443,1778901047000,-500.0,0.00011232,2]
[422378442,1778901047000,-500.0,0.00011232,2]
[422378411,1778901047000,-500.0,0.00011232,2]
[422378424,1778901047000,-500.86909965,0.00011232,2]
[422378412,1778901047000,-500.0,0.00011232,2]
[422378394,1778901047000,-500.0,0.00011232,2]
[422378406,1778901047000,-500.0,0.00011232,2]
[422378439,1778901047000,-500.0,0.00011232,2]
[422378389,1778901047000,-501.25761532,0.00011232,2]
[422378381,1778901047000,-500.0,0.00011232,2]
[422378385,1778901047000,-500.0,0.00011232,2]
[422378383,1778901047000,-500.0,0.00011232,2]
[422378382,1778901047000,-500.0,0.00011232,2]
[422378380,1778901047000,-500.0,0.00011232,2]
[422378387,1778901047000,-372.84096188,0.00011232,2]
[422378384,1778901047000,-500.0,0.00011232,2]
[422378386,1778901047000,-158.86594902,0.00011232,2]
[422378388,1778901047000,-500.9438569,0.00011232,2]
[422378391,1778901047000,-500.0,0.00011232,2]
[422378401,1778901047000,-500.0,0.00011232,2]
[422378402,1778901047000,-500.0,0.00011232,2]
[422378390,1778901047000,-500.0,0.00011232,2]
[422378398,1778901047000,-500.0,0.00011232,2]
[422378393,1778901047000,-500.0,0.00011232,2]
[422378392,1778901047000,-500.0,0.00011232,2]
[422378395,1778901047000,-500.0,0.00011232,2]
[422378397,1778901047000,-500.0,0.00011232,2]
[422378399,1778901047000,-500.0,0.00011232,2]
[422378400,1778901047000,-499.80157073,0.00011232,2]
[422378396,1778901047000,-500.0,0.00011232,2]
[422378403,1778901047000,-500.0,0.00011232,2]
[422378408,1778901047000,-500.0,0.00011232,2]
[422378409,1778901047000,-500.0,0.00011232,2]
[422378407,1778901047000,-501.3430906,0.00011232,2]
[422378410,1778901047000,-500.0,0.00011232,2]
[422378405,1778901047000,-500.94537623,0.00011232,2]
[422378413,1778901047000,-500.0,0.00011232,2]
[422378432,1778901047000,-500.0,0.00011232,2]
[422378468,1778901047000,-502.32479554,0.00011232,2]
[422378440,1778901047000,-357.47452795,0.00011232,2]
[422378472,1778901047000,-500.95493332,0.00011232,2]
[422378480,1778901047000,-224.86389075,0.00011232,2]
[422378438,1778901047000,-500.84990718,0.00011232,2]
[422378485,1778901047000,-401.038,0.00011232,2]
[422378483,1778901047000,-501.53202293,0.00011232,2]
[422378481,1778901047000,-500.0,0.00011232,2]
[422378491,1778901047000,-500.0,0.00011232,2]
[422378484,1778901047000,-500.0,0.00011232,2]
[422378482,1778901047000,-944.57,0.00011232,2]
[422378479,1778901047000,-501.90391921,0.00011232,2]
[422378489,1778901047000,-500.0,0.00011232,2]
[422378487,1778901047000,-577.98,0.00011232,2]
[422378486,1778901047000,-502.3207761,0.00011232,2]
[422378469,1778901047000,-500.0,0.00011232,2]
[422378488,1778901047000,-502.72247982,0.00011232,2]
[422378497,1778901047000,-501.93549844,0.00011232,2]
[422378494,1778901047000,-500.0,0.00011232,2]
[422378495,1778901047000,-501.44238753,0.00011232,2]
[422378493,1778901047000,-501.65594665,0.00011232,2]
[422378498,1778901047000,-930.54,0.00011232,2]
[422378503,1778901047000,-502.2176717,0.00011232,2]
[422378496,1778901047000,-201.50778771,0.00011232,2]
[422378504,1778901047000,-500.0,0.00011232,2]
[422378500,1778901047000,-500.0,0.00011232,2]
[422378499,1778901047000,-500.0,0.00011232,2]
[422378502,1778901047000,-502.76817285,0.00011232,2]
[422378501,1778901047000,-500.0,0.00011232,2]
[422378505,1778901047000,-500.0,0.00011232,2]
[422378492,1778901047000,-500.0,0.00011232,2]
[422378475,1778901047000,-500.0,0.00011232,2]
[422378490,1778901047000,-500.0,0.00011232,2]
[422378474,1778901047000,-501.65229166,0.00011232,2]
[422378444,1778901047000,-500.0,0.00011232,2]
[422378445,1778901047000,-500.0,0.00011232,2]
[422378447,1778901047000,-500.0,0.00011232,2]
[422378449,1778901047000,-947.19,0.00011232,2]
[422378446,1778901047000,-503.27394546,0.00011232,2]
[422378448,1778901047000,-500.95121459,0.00011232,2]
[422378452,1778901047000,-500.0,0.00011232,2]
[422378450,1778901047000,-501.89702432,0.00011232,2]
[422378451,1778901047000,-500.0,0.00011232,2]
[422378477,1778901047000,-501.74395925,0.00011232,2]
[422378454,1778901047000,-500.0,0.00011232,2]
[422378455,1778901047000,-500.0,0.00011232,2]
[422378456,1778901047000,-500.57989358,0.00011232,2]
[422378458,1778901047000,-500.0,0.00011232,2]
[422378453,1778901047000,-500.96871624,0.00011232,2]
[422378460,1778901047000,-500.0,0.00011232,2]
[422378478,1778901047000,-524.91,0.00011232,2]
[422378461,1778901047000,-500.0,0.00011232,2]
[422378470,1778901047000,-500.0,0.00011232,2]
[422378476,1778901047000,-500.0,0.00011232,2]
[422378471,1778901047000,-500.0,0.00011232,2]
[422378467,1778901047000,-500.0,0.00011232,2]
[422378473,1778901047000,-500.0,0.00011232,2]
[422378465,1778901047000,-500.0,0.00011232,2]
[422378464,1778901047000,-500.0,0.00011232,2]
[422378463,1778901047000,-500.0,0.00011232,2]
[422378462,1778901047000,-500.0,0.00011232,2]
[422378457,1778901047000,-500.0,0.00011232,2]
[422378459,1778901047000,-500.75136092,0.00011232,2]
[422378466,1778901047000,-501.50506513,0.00011232,2]
[422378512,1778901048000,-501.95548091,0.00011232,2]
[422378511,1778901048000,-501.47324689,0.00011232,2]
[422378510,1778901048000,-501.7831665,0.00011232,2]
[422378516,1778901048000,-501.12314321,0.00011232,2]
[422378509,1778901048000,-500.0,0.00011232,2]
[422378508,1778901048000,-500.0,0.00011232,2]
[422378517,1778901048000,-501.716127,0.00011232,2]
[422378513,1778901048000,-500.0,0.00011232,2]
[422378506,1778901048000,-500.0,0.00011232,2]
[422378514,1778901048000,-501.91287477,0.00011232,2]
[422378518,1778901048000,-501.99828053,0.00011232,2]
[422378515,1778901048000,-501.46967313,0.00011232,2]
[422378519,1778901048000,-501.78969255,0.00011232,2]
[422378529,1778901048000,-500.0,0.00011232,2]
[422378530,1778901048000,-958.02726367,0.00011232,2]
[422378528,1778901048000,-502.51207533,0.00011232,2]
[422378526,1778901048000,-501.14467809,0.00011232,2]
[422378520,1778901048000,-531.23,0.00011232,2]
[422378507,1778901048000,-500.0,0.00011232,2]
[422378522,1778901048000,-500.0,0.00011232,2]
[422378521,1778901048000,-1001.78032139,0.00011232,2]
[422378524,1778901048000,-501.7184213,0.00011232,2]
[422378523,1778901048000,-500.0,0.00011232,2]
[422378525,1778901048000,-501.41498894,0.00011232,2]
[422378527,1778901048000,-362.18,0.00011232,2]
[422378537,1778901049000,-140.92549801,0.00011232,2]
[422378536,1778901049000,-500.0,0.00011232,2]
[422378534,1778901049000,-500.0,0.00011232,2]
[422378535,1778901049000,-502.13972896,0.00011232,2]
[422378533,1778901049000,-501.70255623,0.00011232,2]
[422378532,1778901049000,-500.66900143,0.00011232,2]
[422378531,1778901049000,-500.0,0.00011232,2]
[422378538,1778901264000,5000.0,0.00018493,120]
[422378542,1778901641000,989.53,0.00018493,120]
[422379008,1778902239000,-155.15975448,0.00010684,2]
[422378998,1778902239000,-414.07553934,8.642e-05,2]
[422378999,1778902239000,-529.57744216,8.729e-05,2]
[422379000,1778902239000,-4470.42255784,8.729e-05,2]
[422379002,1778902239000,-200.0,9.936e-05,2]
[422379001,1778902239000,-308.93581372,8.862e-05,2]
[422379006,1778902239000,-151.5,0.00010684,2]
[422379003,1778902239000,-300.0,0.00010683,2]
[422379007,1778902239000,-281.58147147,0.00010684,2]
[422379004,1778902239000,-151.5,0.00010684,2]
[422379005,1778902239000,-151.5,0.00010684,2]
[422379009,1778902239000,-500.0,0.00010684,2]
[422379011,1778902239000,-500.0,0.00010684,2]
[422379020,1778902239000,-500.0,0.00010684,2]
[422379014,1778902239000,-500.0,0.00010684,2]
[422379010,1778902239000,-500.0,0.00010684,2]
[422379019,1778902239000,-500.0,0.00010684,2]
[422379013,1778902239000,-500.0,0.00010684,2]
[422379015,1778902239000,-500.0,0.00010684,2]
[422379016,1778902239000,-500.0,0.00010684,2]
[422379018,1778902239000,-155.90666802,0.00010684,2]
[422379021,1778902239000,-272.32392909,0.00010684,2]
[422379017,1778902239000,-500.0,0.00010684,2]
[422379012,1778902239000,-500.0,0.00010684,2]
[422379055,1778902247000,-500.0,0.00010684,2]
[422379056,1778902247000,-500.0,0.00010684,2]
[422379054,1778902247000,-311.02952011,0.00010684,2]
[422379057,1778902247000,-500.0,0.00010684,2]
[422379059,1778902247000,-247.96320028,0.00010684,2]
[422379061,1778902247000,-161.66594191,0.00010846,2]
[422379060,1778902247000,-3436.78619133,0.00010684,2]
[422379063,1778902247000,-4324.62778069,0.00010858,2]
[422379062,1778902247000,-249.7093,0.00010847,2]
[422379064,1778902247000,-11074.21857283,0.00010858,2]
[422379058,1778902247000,-500.0,0.00010684,2]
[422379065,1778902291000,4054.78756699,9.5e-05,2]
[422379113,1778903431000,-212.54867554,8.506e-05,2]
[422379107,1778903431000,-307.0373061,8.421e-05,2]
[422379121,1778903431000,-277.33725603,0.00010636,2]
[422379123,1778903431000,-300.0,0.00010657,2]
[422379127,1778903431000,-1200.0,0.00010657,2]
[422379115,1778903431000,-4787.45132446,8.506e-05,2]
[422379112,1778903431000,-436.31273368,8.421e-05,2]
[422379117,1778903431000,-310.03941815,8.636e-05,2]
[422379125,1778903431000,-300.0,0.00010657,2]
[422379119,1778903431000,-88.50925739,0.00010636,2]
[422379129,1778903431000,-8467.64801895,0.00010658,2]
[422379131,1778903431000,-161.66594191,0.00010666,2]
[422379139,1778903431000,-500.0,0.00010757,2]
[422379141,1778903431000,-52.09026151,0.00010757,2]
[422379137,1778903431000,-500.0,0.00010757,2]
[422379144,1778903432000,-405.59241551,0.00010757,2]
[422379146,1778903432000,-500.0,0.00010757,2]
[422379148,1778903432000,-500.0,0.00010757,2]
[422379149,1778903432000,-500.0,0.00010757,2]
[422379151,1778903432000,-156.11686126,0.00010757,2]
[422379153,1778903432000,-500.0,0.00010757,2]
[422379159,1778903432000,-313.23840336,0.00010757,2]
[422379157,1778903432000,-500.0,0.00010757,2]
[422379161,1778903432000,-620.72658353,0.00010958,2]
[422379155,1778903432000,-500.0,0.00010757,2]
[422379287,1778903440000,-675.31521647,0.00010958,2]
[422379290,1778903440000,-500.0,0.00010958,2]
[422379289,1778903440000,-500.0,0.00010958,2]
[422379292,1778903440000,-320.00932783,0.00010958,2]
[422379288,1778903440000,-500.0,0.00010958,2]
[422379291,1778903440000,-500.0,0.00010958,2]
[422379297,1778903440000,-303.35657413,0.00010958,2]
[422379295,1778903440000,-500.0,0.00010958,2]
[422379294,1778903440000,-1000.0,0.00010958,2]
[422379298,1778903440000,-502.26980309,0.00010958,2]
[422379296,1778903440000,-198.51223669,0.00010958,2]
[422379299,1778903440000,-81.9724778,0.00010958,2]
[422379293,1778903440000,-66.8739006,0.00010958,2]
[422379324,1778903443000,-500.0,0.00010958,2]
[422379321,1778903443000,-500.0,0.00010958,2]
[422379316,1778903443000,-9.27124877,0.00010958,2]
[422379319,1778903443000,-500.0,0.00010958,2]
[422379325,1778903443000,-501.27875442,0.00010958,2]
[422379317,1778903443000,-501.9547599,0.00010958,2]
[422379318,1778903443000,-512.29571859,0.00010958,2]
[422379327,1778903443000,-501.41642078,0.00010958,2]
[422379328,1778903443000,-502.06731598,0.00010958,2]
[422379326,1778903443000,-500.0,0.00010958,2]
[422379320,1778903443000,-500.29557385,0.00010958,2]
[422379334,1778903443000,-500.0,0.00010958,2]
[422379314,1778903443000,-501.58774758,0.00010958,2]
[422379312,1778903443000,-502.52699723,0.00010958,2]
[422379307,1778903443000,-125.22019781,0.00010848,2]
[422379311,1778903443000,-501.2629143,0.00010958,2]
[422379315,1778903443000,-490.72875123,0.00010958,2]
[422379313,1778903443000,-501.77425194,0.00010958,2]
[422379310,1778903443000,-501.08779964,0.00010958,2]
[422379308,1778903443000,-418.0275222,0.00010958,2]
[422379309,1778903443000,-500.67725504,0.00010958,2]
[422379305,1778903443000,-2220.94122709,0.00010848,2]
[422379306,1778903443000,-2653.8385751,0.00010848,2]
[422379322,1778903443000,-500.93158519,0.00010958,2]
[422379329,1778903443000,-501.82712165,0.00010958,2]
[422379323,1778903443000,-500.0,0.00010958,2]
[422379337,1778903443000,-296.8641205,0.00010958,2]
[422379340,1778903443000,-500.8521573,0.00010958,2]
[422379354,1778903443000,-137.19512651,0.00010958,2]
[422379352,1778903443000,-500.0,0.00010958,2]
[422379353,1778903443000,-500.0,0.00010958,2]
[422379349,1778903443000,-500.0,0.00010958,2]
[422379350,1778903443000,-502.60401551,0.00010958,2]
[422379351,1778903443000,-500.0,0.00010958,2]
[422379346,1778903443000,-501.80504575,0.00010958,2]
[422379348,1778903443000,-500.0,0.00010958,2]
[422379343,1778903443000,-526.05749316,0.00010958,2]
[422379347,1778903443000,-501.11523714,0.00010958,2]
[422379345,1778903443000,-500.0,0.00010958,2]
[422379355,1778903443000,-362.80487349,0.00010958,2]
[422379342,1778903443000,-500.0,0.00010958,2]
[422379344,1778903443000,-263.87469167,0.00010958,2]
[422379332,1778903443000,-500.0,0.00010958,2]
[422379338,1778903443000,-314.08314423,0.00010958,2]
[422379330,1778903443000,-501.05755559,0.00010958,2]
[422379341,1778903443000,-500.0,0.00010958,2]
[422379356,1778903443000,-51.45352575,0.00010958,2]
[422379335,1778903443000,-500.0,0.00010958,2]
[422379336,1778903443000,-232.62984432,0.00010958,2]
[422379331,1778903443000,-227.03991049,0.00010958,2]
[422379333,1778903443000,-501.51543717,0.00010958,2]
[422379339,1778903443000,-500.0,0.00010958,2]
[422379375,1778903446000,-868.26,0.00010958,2]
[422379380,1778903446000,-500.0,0.00010958,2]
[422379376,1778903446000,-501.77083139,0.00010958,2]
[422379374,1778903446000,-501.56689672,0.00010958,2]
[422379373,1778903446000,-501.41947483,0.00010958,2]
[422379371,1778903446000,-500.0,0.00010958,2]
[422379372,1778903446000,-500.0,0.00010958,2]
[422379379,1778903446000,-500.0,0.00010958,2]
[422379370,1778903446000,-518.36,0.00010958,2]
[422379361,1778903446000,-450.87167688,0.00010958,2]
[422379369,1778903446000,-261.72262418,0.00010958,2]
[422379365,1778903446000,-184.77996563,0.00010958,2]
[422379366,1778903446000,-500.0,0.00010958,2]
[422379364,1778903446000,-500.0,0.00010958,2]
[422379362,1778903446000,-502.41519046,0.00010958,2]
[422379363,1778903446000,-502.65358094,0.00010958,2]
[422379360,1778903446000,-782.88936578,0.00010858,2]
[422379359,1778903446000,-3001.15994235,0.00010858,2]
[422379377,1778903446000,-500.0,0.00010958,2]
[422379378,1778903446000,-501.89926183,0.00010958,2]
[422379381,1778903446000,-501.6188061,0.00010958,2]
[422379367,1778903446000,-501.31116238,0.00010958,2]
[422379387,1778903446000,-865.85,0.00010958,2]
[422379383,1778903446000,-500.0,0.00010958,2]
[422379402,1778903446000,-500.87015989,0.00010958,2]
[422379403,1778903446000,-500.0,0.00010958,2]
[422379400,1778903446000,-501.33388547,0.00010958,2]
[422379401,1778903446000,-500.0,0.00010958,2]
[422379399,1778903446000,-501.36587182,0.00010958,2]
[422379396,1778903446000,-500.0,0.00010958,2]
[422379395,1778903446000,-500.0,0.00010958,2]
[422379397,1778903446000,-500.0,0.00010958,2]
[422379394,1778903446000,-501.11801957,0.00010958,2]
[422379398,1778903446000,-501.28589567,0.00010958,2]
[422379391,1778903446000,-500.0,0.00010958,2]
[422379389,1778903446000,-529.82,0.00010958,2]
[422379390,1778903446000,-853.0,0.00010958,2]
[422379392,1778903446000,-500.0,0.00010958,2]
[422379388,1778903446000,-500.0,0.00010958,2]
[422379382,1778903446000,-500.0,0.00010958,2]
[422379384,1778903446000,-500.0,0.00010958,2]
[422379385,1778903446000,-500.0,0.00010958,2]
[422379393,1778903446000,-500.0,0.00010958,2]
[422379386,1778903446000,-500.0,0.00010958,2]
[422379435,1778903447000,-502.13511547,0.00010958,2]
[422379438,1778903447000,-500.90614684,0.00010958,2]
[422379434,1778903447000,-500.0,0.00010958,2]
[422379431,1778903447000,-500.0,0.00010958,2]
[422379433,1778903447000,-501.33223102,0.00010958,2]
[422379441,1778903447000,-500.0,0.00010958,2]
[422379432,1778903447000,-479.06935852,0.00010958,2]
[422379439,1778903447000,-500.0,0.00010958,2]
[422379442,1778903447000,-500.0,0.00010958,2]
[422379440,1778903447000,-1098.4,0.00010958,2]
[422379448,1778903447000,-500.0,0.00010958,2]
[422379437,1778903447000,-823.97,0.00010958,2]
[422379446,1778903447000,-500.0,0.00010958,2]
[422379445,1778903447000,-568.36,0.00010958,2]
[422379447,1778903447000,-2574.88,0.00010958,2]
[422379444,1778903447000,-500.85650362,0.00010958,2]
[422379455,1778903447000,-582.7,0.00010958,2]
[422379456,1778903447000,-491.94595039,0.00010958,2]
[422379454,1778903447000,-500.0,0.00010958,2]
[422379443,1778903447000,-977.32,0.00010958,2]
[422379430,1778903447000,-500.45082573,0.00010958,2]
[422379449,1778903447000,-500.0,0.00010958,2]
[422379436,1778903447000,-500.0,0.00010958,2]
[422379427,1778903447000,-500.0,0.00010958,2]
[422379429,1778903447000,-500.0,0.00010958,2]
[422379426,1778903447000,-500.0,0.00010958,2]
[422379404,1778903447000,-500.0,0.00010958,2]
[422379415,1778903447000,-500.0,0.00010958,2]
[422379405,1778903447000,-874.4,0.00010958,2]
[422379416,1778903447000,-500.0,0.00010958,2]
[422379406,1778903447000,-500.0,0.00010958,2]
[422379408,1778903447000,-500.0,0.00010958,2]
[422379407,1778903447000,-500.0,0.00010958,2]
[422379413,1778903447000,-488.55092778,0.00010958,2]
[422379410,1778903447000,-375.48992556,0.00010958,2]
[422379411,1778903447000,-501.77397764,0.00010958,2]
[422379414,1778903447000,-500.0,0.00010958,2]
[422379409,1778903447000,-500.0,0.00010958,2]
[422379412,1778903447000,-1156.16,0.00010958,2]
[422379418,1778903447000,-500.0,0.00010958,2]
[422379422,1778903447000,-500.0,0.00010958,2]
[422379419,1778903447000,-500.0,0.00010958,2]
[422379417,1778903447000,-1101.74,0.00010958,2]
[422379424,1778903447000,-500.0,0.00010958,2]
[422379420,1778903447000,-831.03,0.00010958,2]
[422379423,1778903447000,-500.0,0.00010958,2]
[422379452,1778903447000,-997.6,0.00010958,2]
[422379421,1778903447000,-588.85118439,0.00010958,2]
[422379428,1778903447000,-500.0,0.00010958,2]
[422379425,1778903447000,-500.0,0.00010958,2]
[422379453,1778903447000,-501.39288028,0.00010958,2]
[422379487,1778903447000,-501.53353672,0.00010958,2]
[422379451,1778903447000,-500.0,0.00010958,2]
[422379484,1778903447000,-547.75,0.00010958,2]
[422379489,1778903447000,-500.0,0.00010958,2]
[422379491,1778903447000,-501.49632226,0.00010958,2]
[422379488,1778903447000,-888.09,0.00010958,2]
[422379493,1778903447000,-501.4852726,0.00010958,2]
[422379485,1778903447000,-500.0,0.00010958,2]
[422379490,1778903447000,-975.12,0.00010958,2]
[422379498,1778903447000,-511.44,0.00010958,2]
[422379494,1778903447000,-20546.38,0.00010958,2]
[422379495,1778903447000,-859.21,0.00010958,2]
[422379496,1778903447000,-500.0,0.00010958,2]
[422379492,1778903447000,-501.43224785,0.00010958,2]
[422379497,1778903447000,-501.91610788,0.00010958,2]
[422379500,1778903447000,-1716.01,0.00010958,2]
[422379501,1778903447000,-500.76592404,0.00010958,2]
[422379499,1778903447000,-500.65904071,0.00010958,2]
[422379503,1778903447000,-3674.93910566,0.00010958,2]
[422379504,1778903447000,-288.60089434,0.00010958,2]
[422379507,1778903447000,-223.31336988,0.00010958,2]
[422379505,1778903447000,-1390.2,0.00010958,2]
[422379502,1778903447000,-500.86906515,0.00010958,2]
[422379506,1778903447000,-502.88530287,0.00010958,2]
[422379450,1778903447000,-501.61560118,0.00010958,2]
[422379470,1778903447000,-881.96,0.00010958,2]
[422379474,1778903447000,-500.0,0.00010958,2]
[422379486,1778903447000,-1056.63,0.00010958,2]
[422379478,1778903447000,-500.0,0.00010958,2]
[422379458,1778903447000,-500.0,0.00010958,2]
[422379468,1778903447000,-500.0,0.00010958,2]
[422379469,1778903447000,-1269.92,0.00010958,2]
[422379461,1778903447000,-500.0,0.00010958,2]
[422379464,1778903447000,-368.17311392,0.00010958,2]
[422379467,1778903447000,-952.99,0.00010958,2]
[422379457,1778903447000,-500.0,0.00010958,2]
[422379460,1778903447000,-3080.95,0.00010958,2]
[422379463,1778903447000,-502.56318628,0.00010958,2]
[422379462,1778903447000,-500.0,0.00010958,2]
[422379459,1778903447000,-501.36757566,0.00010958,2]
[422379466,1778903447000,-500.0,0.00010958,2]
[422379476,1778903447000,-503.09748317,0.00010958,2]
[422379465,1778903447000,-2458.02,0.00010958,2]
[422379481,1778903447000,-1177.22,0.00010958,2]
[422379471,1778903447000,-500.0,0.00010958,2]
[422379472,1778903447000,-2752.73,0.00010958,2]
[422379475,1778903447000,-500.0,0.00010958,2]
[422379477,1778903447000,-500.0,0.00010958,2]
[422379479,1778903447000,-500.0,0.00010958,2]
[422379473,1778903447000,-500.0,0.00010958,2]
[422379482,1778903447000,-500.0,0.00010958,2]
[422379483,1778903447000,-2347.19,0.00010958,2]
[422379480,1778903447000,-1616.59,0.00010958,2]
[422379513,1778903795000,569.10477952,0.00015593,120]
[422379516,1778903909000,282.97677876,0.00015223,120]
[422379677,1778904638000,-311.8854981,8.482e-05,2]
[422379717,1778904640000,-433.88867265,8.568e-05,2]
[422379718,1778904640000,-1491.86651061,8.668e-05,2]
[422379716,1778904640000,-1354.74275382,8.568e-05,2]
[422379715,1778904640000,-208.94659251,8.5e-05,7]
[422379714,1778904640000,-765.50483347,8.482e-05,2]
[422379713,1778904640000,-3922.60966843,8.482e-05,2]
[422379737,1778904643000,-2500.71796955,8.668e-05,2]
[422379739,1778904643000,-596.08016655,8.868e-05,2]
[422379736,1778904643000,-419.55696081,8.581e-05,2]
[422379738,1778904643000,-4394.88166966,8.768e-05,2]
[422379755,1778904646000,-3815.07889735,8.868e-05,2]
[422379756,1778904646000,-4829.73364773,8.968e-05,2]
[422379757,1778904646000,-1348.10774054,9.168e-05,2]
[422379759,1778904646000,-296.52169952,9.181e-05,2]
[422379758,1778904646000,-4318.94028891,9.168e-05,2]
[422379762,1778904646000,-500.0,0.00010482,2]
[422379760,1778904646000,-3686.18813739,0.00010271,2]
[422379763,1778904646000,-269.26688236,0.00010482,2]
[422379761,1778904646000,-320.831,0.00010371,2]
[422379767,1778904646000,-4805.8963317,0.00010483,2]
[422379765,1778904646000,-161.96474189,0.00010482,2]
[422379766,1778904646000,-184.01298458,0.00010482,2]
[422379768,1778904646000,-169699.93154273,0.00010483,2]
[422379764,1778904646000,-500.0,0.00010482,2]
[422379831,1778905832000,-307.52159835,9.276e-05,2]
[422379833,1778905832000,-182.0569226,9.417e-05,2]
[422379827,1778905832000,-5000.0,8.956e-05,2]
[422379829,1778905832000,-1060.96679558,9.046e-05,2]
[422379841,1778905832000,-293.79555847,0.00010279,2]
[422379836,1778905832000,-3225.41462019,0.00010183,2]
[422379838,1778905832000,-6.20444153,0.00010279,2]
[422379842,1778905832000,-106.70443653,0.00010279,2]
[422379835,1778905832000,-1200.0,0.00010182,2]
[422380017,1778905838000,-193.29556347,0.00010279,2]
[422380023,1778905838000,-11393.84185429,0.00010283,2]
[422380021,1778905838000,-256.664,0.00010282,2]
[422380026,1778905838000,-504889.5419848,0.00010283,2]
[422380019,1778905838000,-212.28153239,0.00010279,2]
[422380018,1778905838000,-87.71846761,0.00010279,2]
[422380022,1778905838000,-80776.77767084,0.00010283,2]
[422380020,1778905838000,-300.0,0.00010279,2]
[422380025,1778905838000,-3191.72976468,0.00010283,2]
[422380024,1778905838000,-11607.25636739,0.00010283,2]